bitfinex/quotes_SOLUSD_20220302
["timestamp","ask_amount","ask_price","bid_price","bid_amount"]
[1646221474846,35.17970831,104.36,104.28,80.7282]
[1646221475245,60.23630673,104.35,104.28,23.1582]
[1646221475447,14.384,104.34,104.28,23.1582]
[1646221475646,54.86178911,104.33,104.28,23.1582]
[1646221475947,14.384,104.34,104.28,23.1582]
[1646221476947,73.71288784,104.34,104.28,23.1582]
[1646221477749,73.71288784,104.34,104.28,22.9082]
[1646221477950,73.71288784,104.34,104.28,23.1582]
[1646221478350,73.71288784,104.34,104.28,80.7282]
[1646221478849,73.71288784,104.34,104.28,23.1582]
[1646221480650,14.384,104.34,104.28,23.1582]
[1646221481851,64.64446199,104.36,104.28,176.7682]
[1646221482151,64.64446199,104.36,104.29,63.57]
[1646221482355,64.64446199,104.36,104.29,63.82]
[1646221483051,14.3814,104.36,104.29,159.86]
[1646221483250,5.9967973,104.39,104.29,168.187]
[1646221483452,51.7212,104.41,104.3,0.40388882]
[1646221483651,51.7212,104.41,104.31,153.61]
[1646221483652,48.0392,104.41,104.31,153.61]
[1646221483851,48.0392,104.41,104.33,153.61]
[1646221484055,48.0392,104.41,104.34,63.57]
[1646221484251,48.0392,104.41,104.34,63.82]
[1646221484652,56.71827772,104.42,104.34,63.82]
[1646221485052,14.3742,104.41,104.34,63.82]
[1646221485252,14.3742,104.41,104.34,88.119]
[1646221485454,14.3742,104.41,104.34,82.119]
[1646221485751,14.3742,104.41,104.35,6.0]
[1646221485955,14.3742,104.41,104.35,0.25]
[1646221486153,14.3742,104.41,104.34,24.299]
[1646221486154,33.35230831,104.41,104.34,24.299]
[1646221486353,54.15618105,104.4,104.31,24.7206]
[1646221486553,14.3791,104.38,104.31,24.7206]
[1646221487159,14.3791,104.38,104.31,82.2906]
[1646221487358,14.3791,104.38,104.31,24.7206]
[1646221487558,14.3763,104.4,104.31,78.60405205]
[1646221487760,5.0,104.43,104.32,6.0]
[1646221487960,5.0,104.43,104.33,24.4187]
[1646221488159,5.0,104.43,104.34,63.57]
[1646221488359,5.0,104.43,104.34,6.25]
[1646221488560,51.85563958,104.42,104.34,6.25]
[1646221489160,14.3728,104.42,104.34,6.25]
[1646221489865,34.95808212,104.42,104.33,24.4187]
[1646221490060,60.30045035,104.41,104.33,24.4187]
[1646221490260,14.3774,104.39,104.31,24.7206]
[1646221490461,55.62870478,104.38,104.31,48.1222]
[1646221491262,55.62870478,104.38,104.31,48.3722]
[1646221491562,70.00690478,104.38,104.31,105.9422]
[1646221492484,70.00690478,104.38,104.31,48.3722]
[1646221494781,14.3782,104.38,104.31,48.3722]
[1646221494983,14.3782,104.38,104.31,105.9422]
[1646221495182,14.3782,104.38,104.32,6.0]
[1646221495384,38.0673,104.4,104.32,6.25]
[1646221495583,38.0673,104.4,104.32,0.25]
[1646221495782,51.7046983,104.39,104.32,0.25]
[1646221497503,3.68,104.43,104.36,0.36682856]
[1646221497699,1.70159287,104.47,104.35,159.61]
[1646221497700,22.9154,104.46,104.35,171.4]
[1646221497902,22.9154,104.46,104.36,81.3011]
[1646221498099,49.79595874,104.45,104.37,6.0]
[1646221498302,49.79595874,104.45,104.37,0.25]
[1646221498701,14.3704,104.44,104.37,0.25]
[1646221498903,54.48588208,104.43,104.37,0.25]
[1646221499203,70.8206,104.46,104.37,0.25]
[1646221499402,70.8206,104.46,104.36,23.9811]
[1646221499601,91.61593562,104.46,104.37,57.57]
[1646221499804,14.3691,104.45,104.37,57.82]
[1646221500006,18.0311,104.45,104.38,22.5696]
[1646221500203,62.35150833,104.45,104.38,22.8196]
[1646221501604,62.35150833,104.45,104.38,80.3896]
[1646221501803,58.68950833,104.45,104.38,80.3896]
[1646221502004,14.3691,104.45,104.38,80.3896]
[1646221502403,26.6294,104.46,104.38,80.3896]
[1646221503005,43.11280398,104.45,104.38,80.3896]
[1646221504208,43.11280398,104.45,104.39,57.57]
[1646221504408,43.11280398,104.45,104.39,57.82]
[1646221504708,43.11280398,104.45,104.38,22.5696]
[1646221504907,43.11280398,104.45,104.38,22.8196]
[1646221506110,57.48130398,104.45,104.38,22.8196]
[1646221506711,78.2766396,104.45,104.38,22.8196]
[1646221508411,57.48130398,104.45,104.38,22.8196]
[1646221509813,14.3685,104.45,104.38,80.3896]
[1646221510612,14.3685,104.45,104.38,22.8196]
[1646221510813,57.72801628,104.45,104.38,22.8196]
[1646221514918,14.3685,104.45,104.38,176.4296]
[1646221515117,14.3667,104.47,104.4,57.57]
[1646221515320,14.3667,104.47,104.4,57.82]
[1646221515517,14.3667,104.47,104.4,0.25]
[1646221515918,60.66092886,104.47,104.4,0.25]
[1646221516618,60.66092886,104.47,104.39,63.82]
[1646221517219,60.66092886,104.47,104.39,159.86]
[1646221517620,60.66092886,104.47,104.39,63.82]
[1646221517820,60.66092886,104.47,104.39,0.25]
[1646221518022,60.66092886,104.47,104.38,26.6496]
[1646221518421,60.66092886,104.47,104.38,80.3896]
[1646221519124,60.66092886,104.47,104.38,22.8196]
[1646221519322,94.65565307,104.47,104.38,22.5696]
[1646221519522,100.65325828,104.47,104.38,22.5696]
[1646221519723,105.65325828,104.47,104.38,22.5696]
[1646221519922,124.81396253,104.47,104.38,22.5696]
[1646221520125,124.81396253,104.47,104.37,3.83]
[1646221520729,101.97225828,104.47,104.37,61.4]
[1646221521524,101.97225828,104.47,104.38,23.8387]
[1646221521727,101.97225828,104.47,104.38,24.0887]
[1646221523329,96.97225828,104.47,104.38,24.0887]
[1646221523526,101.97225828,104.47,104.38,24.0887]
[1646221523728,96.97225828,104.47,104.38,24.0887]
[1646221523929,101.97225828,104.47,104.38,24.0887]
[1646221524128,3.679,104.46,104.38,24.0887]
[1646221524330,14.3706,104.44,104.38,24.0887]
[1646221525229,59.89873051,104.43,104.38,24.0887]
[1646221525730,14.3706,104.44,104.38,24.0887]
[1646221526546,14.3676,104.46,104.38,81.6587]
[1646221528457,46.90440556,104.45,104.38,81.6587]
[1646221528849,14.3676,104.46,104.38,81.6587]
[1646221529050,18.0462,104.48,104.38,192.0628]
[1646221529251,14.3652,104.48,104.4,153.61]
[1646221529449,14.3652,104.48,104.41,63.57]
[1646221529650,14.3652,104.48,104.41,63.82]
[1646221530251,14.3652,104.48,104.41,159.86]
[1646221530652,14.3652,104.48,104.41,63.82]
[1646221531250,14.3652,104.48,104.41,6.25]
[1646221533052,48.16065626,104.47,104.41,6.25]
[1646221533852,14.3652,104.48,104.41,6.25]
[1646221534853,50.8538567,104.47,104.41,0.25]
[1646221535152,65.2196567,104.47,104.4,24.993]
[1646221536554,14.3658,104.47,104.4,24.993]
[1646221536956,14.3658,104.47,104.41,96.04]
[1646221537256,3.678,104.5,104.42,153.61]
[1646221537457,51.21623942,104.5,104.43,63.57]
[1646221537657,51.21623942,104.5,104.43,6.25]
[1646221538256,51.21623942,104.5,104.43,28.9105]
[1646221538455,51.21623942,104.5,104.43,22.9105]
[1646221539056,14.3618,104.5,104.43,22.9105]
[1646221539256,14.3618,104.5,104.43,80.4805]
[1646221540962,58.50944439,104.51,104.44,63.57]
[1646221541164,58.50944439,104.51,104.44,63.82]
[1646221541762,58.50944439,104.51,104.44,57.82]
[1646221541962,58.50944439,104.51,104.44,0.25]
[1646221542162,58.50944439,104.51,104.43,22.9105]
[1646221542966,72.86964439,104.51,104.43,22.9105]
[1646221544668,72.86964439,104.51,104.43,22.6605]
[1646221544869,86.20861454,104.51,104.43,22.6605]
[1646221545368,107.40794161,104.51,104.43,22.6605]
[1646221547370,111.08794161,104.51,104.43,22.6605]
[1646221549174,207.12794161,104.51,104.39,23.1556]
[1646221549372,231.57354161,104.51,104.39,23.1556]
[1646221549772,46.7454293,104.5,104.39,23.1556]
[1646221549980,14.3687,104.47,104.39,23.1556]
[1646221550173,54.68157967,104.46,104.39,23.1556]
[1646221550374,66.22157967,104.46,104.39,23.1556]
[1646221550572,66.22157967,104.46,104.39,23.4056]
[1646221551375,54.68157967,104.46,104.39,23.4056]
[1646221551776,54.68157967,104.46,104.39,80.9756]
[1646221552074,47.8955,104.48,104.39,23.4056]
[1646221552274,57.52579374,104.49,104.4,22.5226]
[1646221552475,57.52579374,104.49,104.4,22.7726]
[1646221553176,14.3664,104.47,104.4,22.7726]
[1646221553376,58.2889542,104.46,104.4,22.7726]
[1646221553778,58.2889542,104.46,104.42,89.0]
[1646221554683,14.3664,104.47,104.42,89.0]
[1646221555882,14.3664,104.47,104.42,89.25]
[1646221556082,14.3664,104.47,104.42,89.0]
[1646221556284,57.09248836,104.46,104.42,89.0]
[1646221558985,71.45948836,104.46,104.42,89.0]
[1646221560808,14.367,104.46,104.42,89.0]
[1646221561010,14.3652,104.48,104.42,89.0]
[1646221561809,67.55144189,104.48,104.42,89.0]
[1646221566619,14.3652,104.48,104.42,89.25]
[1646221566819,14.3624,104.5,104.42,242.86]
[1646221567019,73.29119374,104.51,104.44,57.57]
[1646221567020,19.49533562,104.51,104.44,57.57]
[1646221567220,3.569,104.52,104.45,63.57]
[1646221567429,8.532,104.54,104.45,57.82]
[1646221567618,63.25859223,104.54,104.47,57.57]
[1646221567818,63.25859223,104.54,104.47,57.82]
[1646221568119,58.25859223,104.54,104.47,57.82]
[1646221569120,69.08329223,104.54,104.48,6.0]
[1646221569321,69.08329223,104.54,104.48,6.25]
[1646221569623,69.08329223,104.54,104.46,23.5869]
[1646221569822,69.08329223,104.54,104.46,23.8369]
[1646221570420,69.08329223,104.54,104.47,57.57]
[1646221570621,69.08329223,104.54,104.47,57.82]
[1646221570822,14.3567,104.54,104.47,57.82]
[1646221571023,14.3567,104.54,104.47,64.662]
[1646221572026,43.15619238,104.53,104.47,64.662]
[1646221572627,43.15619238,104.53,104.47,57.82]
[1646221573232,14.3567,104.54,104.47,57.82]
[1646221575034,49.08024478,104.53,104.47,57.82]
[1646221575932,14.3567,104.54,104.47,57.82]
[1646221576233,3.681,104.56,104.49,153.61]
[1646221576434,8.642,104.59,104.5,63.57]
[1646221576736,8.642,104.59,104.51,23.8725]
[1646221576936,13.16806491,104.58,104.51,24.1225]
[1646221577135,63.83397027,104.58,104.51,24.1225]
[1646221577336,50.66590536,104.58,104.51,24.1225]
[1646221578036,65.01720536,104.58,104.51,24.1225]
[1646221579762,68.73520536,104.58,104.51,81.6925]
[1646221579958,14.3513,104.58,104.51,81.6925]
[1646221580459,14.3513,104.58,104.51,24.1225]
[1646221580659,14.3513,104.58,104.51,81.6925]
[1646221581062,44.94182822,104.57,104.51,81.6925]
[1646221581261,44.94182822,104.57,104.51,24.1225]
[1646221582363,59.29382822,104.57,104.5,6.0]
[1646221582570,59.29382822,104.57,104.49,30.0015]
[1646221582767,61.60448634,104.57,104.49,24.2515]
[1646221583862,61.60448634,104.57,104.49,24.0015]
[1646221585164,61.60448634,104.57,104.49,24.2515]
[1646221585869,59.29382822,104.57,104.49,24.2515]
[1646221586173,169.18448634,104.57,104.47,24.8441]
[1646221586367,3.681,104.56,104.47,24.8441]
[1646221586567,71.25653876,104.55,104.47,25.0941]
[1646221587270,71.25653876,104.55,104.47,178.7041]
[1646221587470,14.3554,104.55,104.48,63.57]
[1646221587672,14.3554,104.55,104.48,63.82]
[1646221588673,14.3554,104.55,104.48,182.6043]
[1646221588875,14.3527,104.57,104.48,182.6043]
[1646221589272,14.3527,104.57,104.48,194.1443]
[1646221589875,65.71785199,104.57,104.48,194.1443]
[1646221590077,14.3527,104.57,104.48,208.4953]
[1646221590572,14.3527,104.57,104.48,212.3213]
[1646221592877,69.22750341,104.58,104.48,212.3213]
[1646221594877,18.0441,104.59,104.48,225.36262322]
[1646221595078,18.0441,104.59,104.49,0.42198078]
[1646221595278,14.3501,104.59,104.5,171.784]
[1646221595479,14.3501,104.59,104.52,57.57]
[1646221595679,14.3501,104.59,104.52,57.82]
[1646221596078,68.304674,104.59,104.52,57.82]
[1646221598083,68.304674,104.59,104.51,38.0404]
[1646221598282,79.844674,104.59,104.51,23.4816]
[1646221598482,81.43826867,104.59,104.51,23.4816]
[1646221598681,99.11360429,104.59,104.51,23.4816]
[1646221599783,14.3552,104.55,104.48,3.825]
[1646221599983,57.74338659,104.54,104.47,24.8441]
[1646221602084,72.10028659,104.54,104.47,25.0941]
[1646221603185,72.10028659,104.54,104.47,82.6641]
[1646221603384,14.3542,104.56,104.47,82.6641]
[1646221603588,14.3542,104.56,104.48,84.1405]
[1646221603887,14.3542,104.56,104.48,84.3905]
[1646221604486,52.90886678,104.55,104.48,84.3905]
[1646221605487,14.3542,104.56,104.48,84.3905]
[1646221606187,14.3542,104.56,104.48,80.5635]
[1646221606788,52.23801709,104.55,104.48,80.5635]
[1646221606988,14.3542,104.56,104.48,80.5635]
[1646221607191,14.3542,104.56,104.48,176.6035]
[1646221607389,14.3542,104.56,104.5,57.57]
[1646221607592,52.3452,104.57,104.5,0.25]
[1646221607991,48.67788882,104.56,104.5,0.25]
[1646221608591,48.67788882,104.56,104.49,63.82]
[1646221610895,66.6973,104.57,104.49,159.86]
[1646221611094,63.0163,104.57,104.49,159.86]
[1646221612112,49.88048602,104.56,104.49,63.82]
[1646221613994,63.0163,104.57,104.49,63.82]
[1646221614194,14.3521,104.57,104.49,63.82]
[1646221614394,14.3501,104.59,104.49,159.86]
[1646221614593,14.3501,104.59,104.51,57.57]
[1646221614794,14.3501,104.59,104.51,57.82]
[1646221614995,46.07400474,104.58,104.51,57.82]
[1646221615596,14.3501,104.59,104.51,57.82]
[1646221616500,74.19265681,104.59,104.51,57.82]
[1646221617298,3.681,104.6,104.56,89.0]
[1646221617498,29.3511,104.62,104.56,89.25]
[1646221617697,5.0,104.62,104.57,57.57]
[1646221617897,5.0,104.62,104.57,0.25]
[1646221618097,5.0,104.62,104.57,6.25]
[1646221618498,50.59597536,104.63,104.57,0.25]
[1646221618699,47.91641665,104.66,104.57,0.25]
[1646221618899,29.15706404,104.66,104.57,0.25]
[1646221619102,14.3426,104.64,104.56,146.82]
[1646221619298,14.3426,104.64,104.56,160.8864]
[1646221619899,14.3426,104.64,104.56,185.7384]
[1646221620199,14.3426,104.64,104.57,6.0]
[1646221620399,14.3426,104.64,104.59,57.57]
[1646221620600,48.91733137,104.65,104.59,57.82]
[1646221620803,48.91733137,104.65,104.59,0.25]
[1646221621001,38.3317,104.66,104.59,6.25]
[1646221621200,38.3317,104.66,104.59,22.7862]
[1646221622101,95.2012393,104.66,104.59,22.7862]
[1646221623804,38.3317,104.66,104.59,176.3962]
[1646221624003,23.9912,104.66,104.59,176.3962]
[1646221624203,39.2831,104.68,104.59,176.3962]
[1646221624403,39.2831,104.68,104.6,63.57]
[1646221624604,39.2831,104.68,104.6,63.82]
[1646221624805,93.6394106,104.68,104.6,63.82]
[1646221626207,3.69,104.69,104.6,159.86]
[1646221626405,14.3349,104.7,104.61,0.37183243]
[1646221626605,14.3349,104.7,104.61,81.14973243]
[1646221626806,14.3349,104.7,104.62,6.0]
[1646221627006,70.62678837,104.7,104.62,6.25]
[1646221628908,170.57029392,104.7,104.57,23.5187]
[1646221629110,122.05459175,104.69,104.58,6.0]
[1646221629309,14.3423,104.66,104.58,6.0]
[1646221629508,43.95041239,104.65,104.57,47.5299]
[1646221631016,58.29231239,104.65,104.57,47.5299]
[1646221631613,58.29231239,104.65,104.57,47.7799]
[1646221634020,14.3419,104.65,104.57,105.3499]
[1646221634630,14.3419,104.65,104.57,201.3899]
[1646221634836,14.3419,104.65,104.57,105.3499]
[1646221635432,96.91695305,104.67,104.57,105.3499]
[1646221635631,96.91695305,104.67,104.57,201.3899]
[1646221635833,96.91695305,104.67,104.57,105.3499]
[1646221637432,38.0538,104.67,104.57,119.6881]
[1646221637633,38.0538,104.67,104.59,153.61]
[1646221637833,38.0538,104.67,104.59,57.82]
[1646221638033,14.3391,104.67,104.59,57.82]
[1646221638235,39.2312,104.69,104.59,57.82]
[1646221638534,86.64585297,104.69,104.61,57.57]
[1646221638737,86.64585297,104.69,104.61,57.82]
[1646221638935,86.64585297,104.69,104.61,0.25]
[1646221639234,88.96221432,104.69,104.61,0.25]
[1646221639837,88.96221432,104.69,104.6,24.52]
[1646221642538,88.96221432,104.69,104.6,82.09]
[1646221643139,88.96221432,104.69,104.6,24.52]
[1646221643539,123.13231847,104.69,104.6,24.48817938]
[1646221643740,14.3404,104.66,104.6,24.48817938]
[1646221644642,24.0837,104.68,104.6,82.05817938]
[1646221645643,24.0837,104.68,104.6,178.09817938]
[1646221645844,72.30935297,104.69,104.6,178.09817938]
[1646221646045,14.3378,104.68,104.6,178.09817938]
[1646221646245,24.8947,104.69,104.6,178.09817938]
[1646221646844,43.99426895,104.71,104.6,178.09817938]
[1646221647044,22.9372,104.71,104.6,197.18721941]
[1646221647246,14.3349,104.7,104.62,153.61]
[1646221647446,22.9372,104.71,104.64,57.57]
[1646221647646,22.9372,104.71,104.64,57.82]
[1646221648248,22.9372,104.71,104.64,153.86]
[1646221648949,3.698,104.74,104.64,156.40904003]
[1646221649147,21.05706895,104.75,104.66,153.61]
[1646221649347,3.714,104.76,104.66,153.86]
[1646221649547,3.714,104.76,104.66,165.4]
[1646221649949,46.88734885,104.76,104.66,173.24]
[1646221650149,61.21414885,104.76,104.66,173.24]
[1646221650951,18.0408,104.76,104.68,57.57]
[1646221651150,18.0408,104.76,104.68,57.82]
[1646221651950,46.59960944,104.75,104.68,57.82]
[1646221652551,14.3268,104.76,104.68,57.82]
[1646221653051,21.05706895,104.77,104.68,72.4232]
[1646221653650,44.56610219,104.76,104.68,72.4232]
[1646221656154,58.89210219,104.76,104.68,72.4232]
[1646221656758,58.89210219,104.76,104.68,168.4632]
[1646221656957,58.89210219,104.76,104.68,72.4232]
[1646221657362,58.89210219,104.76,104.68,0.25]
[1646221657660,82.26557495,104.76,104.66,57.82]
[1646221658059,93.80557495,104.76,104.66,57.82]
[1646221658258,93.80557495,104.76,104.66,0.25]
[1646221658458,95.57881722,104.76,104.65,81.1421]
[1646221658659,3.648,104.75,104.65,81.1421]
[1646221658862,56.08233715,104.72,104.65,81.1421]
[1646221659461,14.3305,104.73,104.65,81.1421]
[1646221659667,27.25460381,104.75,104.65,177.1821]
[1646221659859,39.2663,104.75,104.65,191.509]
[1646221660061,39.2663,104.75,104.65,203.049]
[1646221660464,83.25354745,104.75,104.67,153.61]
[1646221660661,83.25354745,104.75,104.67,0.25]
[1646221660864,58.31534745,104.75,104.67,0.25]
[1646221661663,58.31534745,104.75,104.66,86.7068]
[1646221662163,58.31534745,104.75,104.66,29.1368]
[1646221662363,58.31534745,104.75,104.66,86.7068]
[1646221662564,81.692834,104.75,104.66,23.1368]
[1646221662764,93.232834,104.75,104.66,23.1368]
[1646221663163,93.232834,104.75,104.66,22.8868]
[1646221663365,93.232834,104.75,104.66,80.4568]
[1646221663570,58.31534745,104.75,104.66,80.4568]
[1646221663869,6.57602882,104.74,104.66,80.4568]
[1646221664070,20.90502882,104.74,104.66,80.4568]
[1646221664374,6.57602882,104.74,104.66,179.04584003]
[1646221664572,6.57602882,104.74,104.66,179.29584003]
[1646221666879,6.57602882,104.74,104.66,183.11584003]
[1646221668179,6.57602882,104.74,104.66,208.98154003]
[1646221668389,6.57602882,104.75,104.66,208.98154003]
[1646221669092,6.57602882,104.75,104.68,153.61]
[1646221669291,6.57602882,104.75,104.68,153.86]
[1646221669493,6.57602882,104.75,104.68,57.82]
[1646221669691,6.57602882,104.75,104.68,61.639]
[1646221670093,6.57602882,104.75,104.68,4.069]
[1646221670491,6.57602882,104.75,104.68,27.5801]
[1646221671296,6.57602882,104.75,104.68,85.1501]
[1646221671494,6.57602882,104.75,104.68,181.1901]
[1646221672897,6.57602882,104.75,104.68,85.1501]
[1646221673498,6.57602882,104.75,104.68,27.5801]
[1646221673700,6.57602882,104.75,104.68,23.7611]
[1646221676503,2.32041752,104.74,104.65,32.1411]
[1646221676703,47.46905339,104.73,104.65,28.3221]
[1646221676904,55.78205948,104.73,104.65,28.3221]
[1646221677107,55.78205948,104.73,104.65,23.3221]
[1646221677306,58.102477,104.73,104.65,23.3221]
[1646221677706,69.642477,104.73,104.65,23.3221]
[1646221678108,14.3322,104.72,104.65,23.3221]
[1646221678707,14.3322,104.72,104.65,23.5721]
[1646221680212,6.57602882,104.71,104.65,23.5721]
[1646221688216,6.57602882,104.71,104.65,37.6606]
[1646221689620,6.57602882,104.71,104.66,6.0]
[1646221689819,6.57602882,104.71,104.66,63.82]
[1646221690023,6.57602882,104.72,104.66,171.4]
[1646221690222,6.57602882,104.72,104.67,0.49391925]
[1646221690421,6.57602882,104.72,104.69,57.57]
[1646221690620,6.57602882,104.72,104.7,3.03219997]
[1646221690822,6.57602882,104.72,104.7,3.28219997]
[1646221691624,6.53858658,104.72,104.7,3.28219997]
[1646221693425,6.53858658,104.74,104.7,3.03219997]
[1646221693826,6.53858658,104.74,104.66,29.9087]
[1646221694027,6.53858658,104.74,104.66,33.9777]
[1646221694428,6.53858658,104.74,104.66,33.7277]
[1646221694645,20.86718658,104.74,104.66,23.9087]
[1646221696426,22.71094228,104.74,104.66,23.9087]
[1646221697429,22.71094228,104.74,104.65,37.4106]
[1646221697631,22.71094228,104.74,104.65,37.6606]
[1646221698331,25.0313598,104.74,104.65,23.5721]
[1646221698535,97.78797877,104.73,104.63,28.6425]
[1646221698738,14.3361,104.7,104.63,3.819]
[1646221698937,14.3361,104.7,104.62,14.3365]
[1646221698938,48.03132195,104.69,104.62,14.3365]
[1646221699536,50.35173947,104.69,104.62,14.3365]
[1646221700139,14.3381,104.67,104.62,14.3365]
[1646221701340,64.68813947,104.69,104.62,14.3365]
[1646221702038,66.19511255,104.69,104.62,14.3365]
[1646221702855,6.53858658,104.68,104.62,14.3365]
[1646221703050,20.87548658,104.68,104.62,14.3365]
[1646221703852,25.15085375,104.68,104.62,14.3365]
[1646221704050,20.87548658,104.68,104.62,14.3365]
[1646221707255,121.13890045,104.68,104.59,23.5625]
[1646221707453,28.77990045,104.68,104.59,23.5625]
[1646221708055,28.77990045,104.68,104.59,38.0886]
[1646221708453,28.77990045,104.68,104.59,38.3386]
[1646221709856,109.43580899,104.67,104.56,89.0]
[1646221710054,111.90080666,104.65,104.56,89.0]
[1646221710257,48.71775462,104.64,104.56,89.0]
[1646221710558,54.87075462,104.64,104.56,102.999]
[1646221711157,54.87075462,104.64,104.56,103.249]
[1646221711357,6.53858658,104.63,104.56,103.249]
[1646221711757,6.53858658,104.63,104.56,160.819]
[1646221712057,6.53858658,104.63,104.56,186.01765873]
[1646221712757,6.53858658,104.63,104.56,200.35815873]
[1646221713860,6.53858658,104.63,104.56,142.78815873]
[1646221714059,6.53858658,104.63,104.56,103.249]
[1646221714458,20.88098658,104.64,104.57,6.0]
[1646221714659,20.88098658,104.64,104.57,6.25]
[1646221715060,6.53858658,104.64,104.57,6.25]
[1646221715460,6.53858658,104.64,104.57,159.86]
[1646221715661,6.53858658,104.64,104.57,63.82]
[1646221715863,6.53858658,104.64,104.57,159.86]
[1646221716062,6.53858658,104.64,104.57,63.82]
[1646221716260,6.53858658,104.64,104.57,78.1589]
[1646221716662,6.53858658,104.64,104.59,153.61]
[1646221716862,6.53858658,104.64,104.59,153.86]
[1646221717062,6.53858658,104.64,104.59,167.94904003]
[1646221717461,6.53858658,104.67,104.59,167.94904003]
[1646221718063,6.53858658,104.67,104.59,182.28464003]
[1646221718263,6.53858658,104.67,104.59,206.61604003]
[1646221719265,6.53858658,104.67,104.59,231.81469876]
[1646221719765,6.53858658,104.67,104.59,245.93719876]
[1646221720167,6.53858658,104.67,104.59,149.89719876]
[1646221720364,6.53858658,104.67,104.59,66.87854003]
[1646221720567,20.87698658,104.67,104.59,24.3314]
[1646221721367,116.91698658,104.67,104.57,8.54904003]
[1646221721566,14.3428,104.64,104.57,6.25]
[1646221721766,56.56378417,104.63,104.57,6.25]
[1646221721965,63.10237075,104.63,104.57,6.25]
[1646221722669,63.10237075,104.63,104.57,10.074]
[1646221723667,6.53858658,104.63,104.57,10.074]
[1646221724069,6.53858658,104.63,104.57,92.84265873]
[1646221724267,6.53858658,104.63,104.57,95.39169876]
[1646221724467,6.53858658,104.63,104.57,204.653367]
[1646221724767,6.53858658,104.63,104.57,216.193367]
[1646221724967,6.53858658,104.63,104.57,239.30814468]
[1646221725168,6.53858658,104.67,104.57,253.64724468]
[1646221725369,6.53858658,104.67,104.59,153.61]
[1646221725569,6.53858658,104.67,104.6,3.822]
[1646221725774,6.53858658,104.67,104.61,57.57]
[1646221725969,6.53858658,104.67,104.61,57.82]
[1646221726369,6.53858658,104.67,104.61,72.1539]
[1646221727770,6.53858658,104.67,104.61,74.70294003]
[1646221728170,6.53858658,104.67,104.61,89.37744003]
[1646221728372,6.53858658,104.69,104.61,89.37744003]
[1646221728871,6.53858658,104.69,104.61,185.41744003]
[1646221729071,6.53858658,104.69,104.61,89.37744003]
[1646221730474,6.53858658,104.69,104.61,16.88294003]
[1646221730773,132.57305399,104.69,104.6,27.9607]
[1646221731476,36.53305399,104.69,104.6,27.9607]
[1646221731674,32.41418658,104.69,104.6,85.5307]
[1646221731875,20.87418658,104.69,104.6,85.7807]
[1646221733076,20.87418658,104.69,104.6,100.116]
[1646221733479,20.87418658,104.69,104.6,42.546]
[1646221733677,120.7796856,104.69,104.6,28.2107]
[1646221733882,132.3196856,104.69,104.6,27.9607]
[1646221734177,132.3196856,104.69,104.6,3.822]
[1646221736186,14.3434,104.66,104.6,3.822]
[1646221736384,57.39464111,104.65,104.6,3.822]
[1646221736786,63.93322769,104.65,104.6,3.822]
[1646221736985,66.25383287,104.65,104.6,3.822]
[1646221737385,162.29383287,104.65,104.6,3.822]
[1646221737587,162.29383287,104.65,104.56,102.999]
[1646221737986,14.3427,104.64,104.56,102.999]
[1646221738187,15.85322732,104.64,104.56,102.999]
[1646221738786,111.89322732,104.64,104.56,102.999]
[1646221738988,114.2138325,104.64,104.56,102.999]
[1646221739589,97.90059531,104.62,104.56,89.0]
[1646221739791,70.79459663,104.61,104.56,89.0]
[1646221741892,73.11520181,104.61,104.56,89.0]
[1646221742092,170.96534672,104.61,104.56,89.0]
[1646221742291,182.50534672,104.61,104.56,89.0]